Cogmind - Beta 13 @@@ ROGUE MODE // 2024.03.31 @ 08:37:45 Player: Ryusho Result: Self-destructed Performance ------------- Evolutions (2) 1000 Regions Visited (4) 800 Robots Destroyed (40) 200 Value Destroyed (1179) 1179 Prototype IDs (0) 0 Alien Tech Used (0) 0 Bonus (175) 175 TOTAL SCORE: 3354 Bonus ------- Follower Combat Kills 203 Friendly Fire -28 Cogmind --------- Core Integrity 550/550 Matter 265/300 Energy 250/250 System Corruption 0% Temperature Cool (0) Movement Walking (130) Location -8/Materials Parts ------- > --- POWER (1) -------- Ion Engine > --- PROPULSION (2) --- Carbon-fiber Leg Makeshift Leg > --- UTILITY (6) ------ Targeting Computer Hardlight Generator Hardlight Generator Hacking Suite > --- WEAPON (2) ------- Battle Rifle Subdweller Machine Gun > --- INVENTORY (5) ---- Carbon-fiber Leg Targeting Computer Subdweller Machine Gun Rocket Launcher Peak State ------------ > --- POWER ------------ Ion Engine > --- PROPULSION ------- Carbon-fiber Leg Makeshift Leg > --- UTILITY ---------- Targeting Computer Hardlight Generator Hardlight Generator Hacking Suite > --- WEAPON ----------- Battle Rifle Subdweller Machine Gun > --- INVENTORY -------- Aluminum Leg Targeting Computer Subdweller Machine Gun Rocket Launcher [Rating: 22] Favorites ----------- Power Ion Engine Engine Ion Engine Propulsion Light Treads Treads Light Treads Leg Aluminum Leg Utility Large Storage Unit Device Hardlight Generator Storage Large Storage Unit Processor Targeting Computer Hackware Hacking Suite Protection Light Armor Plating Weapon Assault Rifle Energy Gun Small Laser Ballistic Gun Assault Rifle Ballistic Cannon Light Cannon Build | -11 -10 -10 -10 -8 ------- Run | Yrd Mat Min Sub Mat Slots Evolved 4 | . . . . 4 Power . | . . . . . Propulsion . | . . . . . Utility 4 | . . . . 4 Weapon . | . . . . . Parts Attached 33 | 6 9 9 7 2 Power 4 | 1 1 2 . . Engine 4 | 1 1 2 . . Core . | . . . . . Reactor . | . . . . . Propulsion 8 | 2 1 3 2 . Treads 4 | 2 1 1 . . Leg 4 | . . 2 2 . Wheel . | . . . . . Hover . | . . . . . Flight . | . . . . . Utility 12 | 1 4 2 3 2 Device 2 | . . . . 2 Storage 4 | 1 2 1 . . Processor 1 | . . . 1 . Hackware 1 | . . . 1 . Protection 4 | . 2 1 1 . Artifact . | . . . . . Weapon 9 | 2 3 2 2 . Energy Gun 1 | . . 1 . . Energy Cannon . | . . . . . Ballistic Gun 7 | 2 3 . 2 . Ballistic Cannon 1 | . . 1 . . Launcher . | . . . . . Special Weapon . | . . . . . Impact Weapon . | . . . . . Slashing Weapon . | . . . . . Piercing Weapon . | . . . . . Special Melee Weapon . | . . . . . Unidentified Prototypes . | . . . . . Parts Lost 9 | . . 8 1 . Power 2 | . . 2 . . Propulsion 2 | . . 2 . . Utility 3 | . . 2 1 . Weapon 2 | . . 2 . . Highest Loss Streak 3 | . . 3 1 . To Critical Strikes . | . . . . . Average Slot Usage (%) 91 | . 89 90 95 78 Engine 12 | . 9 13 14 9 Treads 14 | . 27 12 . . Leg 11 | . . 10 28 18 Storage 14 | . 14 22 . . Processor 2 | . . . 10 9 Hackware 2 | . . . 10 9 Protection 5 | . 9 4 3 . Energy Gun 3 | . . 5 3 . Ballistic Gun 17 | . 27 10 17 18 Ballistic Cannon 5 | . . 8 6 . Naked Turns . | . . . . . Heaviest Build 33 | 14 32 33 33 21 Greatest Support 40 | 40 40 40 35 35 Greatest Overweight (x) 1 | . 1 1 1 . Average Overweight (x) . | . . . . . Largest Inventory Capacity 15 | 8 15 15 15 5 Average Capacity 12 | 7 14 15 5 5 Most Carried 15 | 7 15 12 10 5 Average Carried 8 | 4 10 8 4 4 Final Capacity 15 | 8 15 15 5 5 Final Carried 12 | 5 12 7 4 4 Class Distribution -------------------- 81% | Mutant 18% | Scavenger-Mutant Dominant Class ---------------- Mutant | -10/Materials Mutant | -10/Mines Scavenger-Mutant | -10/Subcaves Scavenger-Mutant | -8/Materials Resources | -11 -10 -10 -10 -8 ----------- Run | Yrd Mat Min Sub Mat Matter Collected 1278 | 260 342 566 110 . Remotely . | . . . . . Salvage Created 1345 | . 483 680 182 . Parts 99 | . 34 49 16 . Haulers Intercepted . | . . . . . Recyclers Shooed . | . . . . . Parts Field Recycled . | . . . . . Retrieved Matter . | . . . . . Parts Self-Destructed 6 | . . . 6 . Prevented . | . . . . . Kills | -11 -10 -10 -10 -8 ------- Run | Yrd Mat Min Sub Mat Combat Hostiles Destroyed 35 | . 12 19 4 . Guns 30 | . 12 15 3 . Cannons 5 | . . 4 1 . Classes Destroyed 7 | . 5 1 1 . Worker 1 | . 1 . . . Tunneler 1 | . . 1 . . Operator 1 | . 1 . . . Watcher 2 | . 2 . . . Swarmer 6 | . 3 3 . . Grunt 26 | . 9 16 1 . Subdweller 3 | . . . 3 . Best Kill Streak 7 | . 6 7 2 . Combat Bots Only 6 | . 5 6 2 . Max Kills in Single Turn 2 | . 1 2 2 . Gunslinging 1 | . . 1 . . Exploded . | . . . . . Melee . | . . . . . Uniques/NPCs Destroyed . | . . . . . Combat | -11 -10 -10 -10 -8 -------- Run | Yrd Mat Min Sub Mat Hostile Shots Fired 192 | . 57 103 30 2 Missed 42 | . 10 25 7 . Damage Taken 1905 | . 511 877 487 30 Core 232 | . 42 157 33 . Absorbed by Shields . | . . . . . Regen/Repaired (Parts) 21 | . 21 . . . Core Remaining (%) 53 | 100 . . 7 . Volleys Fired 117 | . 53 51 10 3 Largest 2 | . 2 2 2 2 Hottest 75 | . 40 75 75 55 Shots Fired 214 | . 106 82 20 6 Gun 188 | . 106 65 11 6 Cannon 26 | . . 17 9 . Launcher . | . . . . . Special . | . . . . . Kinetic 206 | . 106 81 13 6 Thermal 8 | . . 1 7 . Explosive . | . . . . . Electromagnetic . | . . . . . Robot Hit Streak 9 | . 9 7 7 6 Robot Miss Streak 6 | . 6 3 1 1 Penetration Max . | . . . . . Secondary Targets 4 | . 1 3 . . Max Gunslinging Chain 1 | . 1 1 . . Shots Hit Robots 130 | . 56 54 16 4 Core Hits 62 | . 27 30 5 . Critical Kills 1 | . . 1 . . Critical Parts Destroyed 1 | . 1 . . . Critical Strikes 4 | . 1 3 . . Destroy 2 | . 1 1 . . Blast 2 | . . 2 . . Melee Attacks . | . . . . . Impact . | . . . . . Slashing . | . . . . . Piercing . | . . . . . Sneak Attacks . | . . . . . Combat Hostiles . | . . . . . Follow-up Attacks . | . . . . . Damage Inflicted 1899 | . 741 828 263 67 Guns 1525 | . 728 577 153 67 Cannons 326 | . . 216 110 . Explosions . | . . . . . Melee . | . . . . . Ramming 48 | . 13 35 . . Kinetic 1775 | . 728 783 197 67 Thermal 76 | . . 10 66 . Explosive . | . . . . . Electromagnetic . | . . . . . Impact . | . . . . . Slashing . | . . . . . Piercing . | . . . . . Highest Corruption . | . . . . . Average Corruption . | . . . . . Corruption Purged . | . . . . . Corruption Blocked . | . . . . . Overload Shots . | . . . . . Overflow Damage . | . . . . . Projectiles . | . . . . . Explosions . | . . . . . Melee . | . . . . . Knockbacks 4 | . . 4 . . Impact . | . . . . . Kinetic 4 | . . 4 . . Secondary . | . . . . . Self-Inflicted Damage . | . . . . . Shots . | . . . . . Rammed 5 | . 3 2 . . Targets Rammed 9 | . 3 6 . . Kicked 4 | . . 4 . . Crushed . | . . . . . Highest Temperature 21 | . 17 21 . 2 Average Temperature 8 | . 8 9 . 1 Received Heat Transfer 783 | . 243 438 84 18 Siege Activations . | . . . . . Robots Corrupted . | . . . . . Combat Hostiles . | . . . . . Parts Fried . | . . . . . Impact Corruptions . | . . . . . Robots Melted . | . . . . . Combat Hostiles . | . . . . . Parts Melted . | . . . . . Heat Transferred 175 | . . 25 150 . Parts Sabotaged . | . . . . . Parts Stolen . | . . . . . Parts Stripped . | . . . . . Power Chain Reactions . | . . . . . Alert | -11 -10 -10 -10 -8 ------- Run | Yrd Mat Min Sub Mat Peak Influence 295 | . 191 295 . 31 Initial 5 | . . 5 . . Average 115 | . 75 159 . 11 Maximum Alert Level 1 | . . 1 . . Low Security (%) 80 | 100 100 62 . 100 Level 1 19 | . . 37 . . Level 2 . | . . . . . Level 3 . | . . . . . Level 4 . | . . . . . Level 5 . | . . . . . High Security . | . . . . . Max Security . | . . . . . Squads Dispatched 5 | . 4 1 . . Investigation 1 | . 1 . . . Extermination . | . . . . . Reinforcement 3 | . 3 . . . Assault 1 | . . 1 . . Garrison . | . . . . . Intercept . | . . . . . Searches Triggered . | . . . . . Construction Impeded . | . . . . . Haulers Reinforced . | . . . . . Active Scanning Responses . | . . . . . Cargo Convoy Interrupts . | . . . . . Stealth | -11 -10 -10 -10 -8 --------- Run | Yrd Mat Min Sub Mat Distress Signals 1 | . . . . 1 Communications Jammed . | . . . . . Distress Signals . | . . . . . Times Spotted 78 | . 25 32 17 4 Peak Tracking Total 6 | . 3 4 6 3 Tactical Retreats 5 | . . 5 . . Traps | -11 -10 -10 -10 -8 ------- Run | Yrd Mat Min Sub Mat Traps Triggered 1 | . 1 . . . Indirectly . | . . . . . Trap Hack Attempts . | . . . . . Triggered . | . . . . . Disarmed . | . . . . . Reprogrammed . | . . . . . Reused . | . . . . . Traps Extracted . | . . . . . Installed . | . . . . . Triggered . | . . . . . Machines | -11 -10 -10 -10 -8 ---------- Run | Yrd Mat Min Sub Mat Machines Disabled 2 | . . 1 . 1 Max in Single Turn 1 | . . 1 . 1 Machines Repaired . | . . . . . Machines Dismantled . | . . . . . Machines Sabotaged . | . . . . . Overloaded Fab Kills . | . . . . . Hacking | -11 -10 -10 -10 -8 --------- Run | Yrd Mat Min Sub Mat Machines Accessed 5 | . 5 . . . Terminals 2 | . 2 . . . Fabricators . | . . . . . Repair Stations 1 | . 1 . . . Recycling Units 2 | . 2 . . . Scanalyzers . | . . . . . Garrison Access . | . . . . . Total Hacks 8 | . 8 . . . Successful 8 | . 8 . . . Failed . | . . . . . Catastrophic . | . . . . . Database Lockouts . | . . . . . Manual . | . . . . . Terminals 3 | . 3 . . . Fabricators . | . . . . . Repair Stations 3 | . 3 . . . Recycling Units 2 | . 2 . . . Scanalyzers . | . . . . . Garrison Access . | . . . . . Terminal Hacks 3 | . 3 . . . Record 2 | . 2 . . . Alert Level 1 | . 1 . . . Fabricator Hacks . | . . . . . Repair Station Hacks 3 | . 3 . . . Scan Component 2 | . 2 . . . Repair 1 | . 1 . . . Recycling Unit Hacks 2 | . 2 . . . Report Inventory 2 | . 2 . . . Scanalyzer . | . . . . . Garrison Access Hacks . | . . . . . Unauthorized Hacks . | . . . . . Terminals . | . . . . . Fabricators . | . . . . . Repair Stations . | . . . . . Recycling Units . | . . . . . Scanalyzers . | . . . . . Garrison Access . | . . . . . Data Cores Recovered . | . . . . . Used . | . . . . . Hacking Detections 3 | . 3 . . . Full Trace Events 1 | . 1 . . . Feedback Events . | . . . . . Feedback Blocked . | . . . . . Robot Schematics Acquired . | . . . . . Robots Built . | . . . . . Authchips . | . . . . . Time . | . . . . . Total Robot Build Rating . | . . . . . Part Schematics Acquired . | . . . . . Parts Built . | . . . . . Authchips . | . . . . . Time . | . . . . . Total Part Build Rating . | . . . . . Parts Repaired 1 | . 1 . . . Time 26 | . 26 . . . Parts Recycled . | . . . . . Recycled Matter . | . . . . . Retrieved Matter . | . . . . . Retrieved Components . | . . . . . Parts Scanalyzed . | . . . . . Part Schematics Acquired . | . . . . . Parts Damaged . | . . . . . Bothacking | -11 -10 -10 -10 -8 ------------ Run | Yrd Mat Min Sub Mat Used RIF Installer . | . . . . . Robots Hacked . | . . . . . Non-combat . | . . . . . Combat . | . . . . . Robot Hacks Applied . | . . . . . Relay Couplers Released . | . . . . . Fabnet Peak Effective % . | . . . . . Robots Rewired . | . . . . . Allies Hacked . | . . . . . Hacks Repelled . | . . . . . Allies | -11 -10 -10 -10 -8 -------- Run | Yrd Mat Min Sub Mat Total Allies 3 | . . 3 . . Largest Group 3 | . . 3 3 . Highest-Rated Group 82 | . . 78 82 . Highest-Rated Ally 31 | . . 31 31 . Total Orders . | . . . . . Ally Attacks 25 | . . 16 9 . Total Damage 396 | . . 270 126 . Kills 7 | . . 6 1 . Allies Corrupted . | . . . . . Allies Melted . | . . . . . Intel | -11 -10 -10 -10 -8 ------- Run | Yrd Mat Min Sub Mat Robot Analysis Total . | . . . . . Derelict Logs Recovered 3 | . . 2 1 . Drone Launches . | . . . . . Drone Recoveries . | . . . . . Exploration | -11 -10 -10 -10 -8 ------------- Run | Yrd Mat Min Sub Mat Turns Passed 4041 | 85 1325 1631 922 78 Spaces Moved 1954 | 50 657 621 588 38 Core 11 | 11 . . . . Treads 1108 | 39 657 412 . . Legs 835 | . . 209 588 38 Wheels . | . . . . . Hover . | . . . . . Flight . | . . . . . Fastest Speed 50 | 50 160 160 120 130 Average Speed 164 | 135 160 196 139 130 Slowest Speed 240 | 160 240 240 190 130 Overloaded Moves . | . . . . . Propulsion Burnouts . | . . . . . Robots Hopped . | . . . . . Cave-ins Triggered . | . . . . . Exploration Rate (%) 45 | 3 89 98 27 9 Regions Visited 4 Branch Regions 2 Pre-discovered Areas 2 | . . 2 . . Known Exits Taken . | . . . . . Unknown Exits Taken 4 | 1 1 1 1 . Scrap Searched 7 | . . 1 6 . Spaces Dug . | . . . . . Terrain Destroyed 1 | . . . . 1 Melee . | . . . . . Projectile 1 | . . . . 1 AOE . | . . . . . Terrain Rammed . | . . . . . Walls Destroyed . | . . . . . Machines Disabled . | . . . . . Actions | -11 -10 -10 -10 -8 --------- Run | Yrd Mat Min Sub Mat Total 2573 | 67 823 947 676 60 Wait 404 | 2 79 256 53 14 Move 1950 | 49 656 620 587 38 Hop . | . . . . . Pick Up 42 | 10 17 4 9 2 Fast Attach 3 | 1 1 . . 1 Attach 27 | 5 7 9 5 1 Detach 1 | . . . 1 . Swap 3 | . 1 . 2 . Drop 17 | . 6 1 9 1 Fire 117 | . 53 51 10 3 Melee . | . . . . . Ram . | . . . . . Kick 4 | . . 4 . . Crush 5 | . 3 2 . . Escape Stasis . | . . . . . Rewire . | . . . . . Trap . | . . . . . Miscellaneous . | . . . . . Route ------- -11/Scrapyard -10/Materials (discovered 4 exits: [*Mat x3] / [*Min]) -10/Mines (discovered 3 exits: [*Mat x2] / [*Sub]) -10/Subcaves -8/Materials History --------- Turn | Location | Event 10 | -11/Scrapyard | Discovered new exit (range 15) 86 | -11/Scrapyard | Entered Materials 273 | -10/Materials | Repaired Ion Engine 313 | -10/Materials | Build established: Mutant 344 | -10/Materials | Discovered new exit (range 3) 418 | -10/Materials | Discovered new exit (range 6) 555 | -10/Materials | Discovered new exit (range 15) 790 | -10/Materials | Discovered new exit (range 12) 1411 | -10/Materials | Entered Mines 1482 | -10/Mines | Excavation squad dispatched 1482 | -10/Mines | A large section of the Mines collapsed 1732 | -10/Mines | Excavation squad dispatched 1932 | -10/Mines | Received a Rocket Launcher from a helpful Derelict 1982 | -10/Mines | Excavation squad dispatched 2051 | -10/Mines | Discovered new exit (range 15) 2056 | -10/Mines | Lost 3 parts (1u2w) 2350 | -10/Mines | Met a Derelict testing a Signal Generator 2387 | -10/Mines | Core integrity fell below 50% 2576 | -10/Mines | Discovered new exit (range 5) 2790 | -10/Mines | Learned location of Zion (-7) 3029 | -10/Mines | Discovered new exit (range 6) 3042 | -10/Mines | Entered Subcaves 3042 | -10/Subcaves | Accompanied by 3 allies 3047 | -10/Subcaves | Led the pair of lost Derelicts to an unsafe place 3115 | -10/Subcaves | Discovered new exit (range 5) 3125 | -10/Subcaves | Core integrity fell below 20% 3240 | -10/Subcaves | Ambushed by swarm of Subdwellers 3242 | -10/Subcaves | Ambushed by Subdwellers from Twisted Machinery 3271 | -10/Subcaves | Lost 3 allies 3427 | -10/Subcaves | Disturbed a concealed Subdweller 3530 | -10/Subcaves | Ambushed by Subdwellers from Twisted Machinery 3597 | -10/Subcaves | Build established: Scavenger-Mutant 3881 | -10/Subcaves | Learned Materials garrison access intel 3964 | -10/Subcaves | Entered Materials 3964 | -8/Materials | Evolved 4 slots: Utility x4 4042 | -8/Materials | Self-destructed Last Messages --------------- Subatomizers dissect the Sub. Monowheel, destroying it. HM-FVM(R) destroyed. Acquired 5 matter. Acquired derelict log, extracted data. Data stored: Materials garrison access intel. [Achievement: Close Call] PARAMETERS=UTILITY+4 LOCATION=UNKNOWN GOAL=ESCAPE Acquired Hardlight Generator. Your per-turn energy upkeep is currently significantly in the negative, which may be okay for now but be prepared to manage it more closely. W-25 Informer sends out distress signal. Recycling Unit disabled. Acquired Carbon-fiber Leg. Dropped Aluminum Leg. R-06 Scavenger collects Aluminum Leg. Map ----- +----------------------------------------------------+ | ?????????????????????????????????????????????????? | | ?????????????????????????????????????????????????? | | ?????????????????????????????????????????????????? | | ?????????????????????????????????????????????????? | | ?????????????????????????????????????????????????? | | ??????????????????????? ???????????????????????? | | ?????????????????????? #?????????????????????? | | ?????????????????????? ??????????????????????? | | ?????????????????????? ??????????????????????? | | ?????????????????????? ??????????????????????? | | ?????????????????????? ??????????????????????? | | ??????????????????????# a#??????????????????????? | | ??????????????????????# #??????????????????????? | | ??????????????????????# g#??????????????????????? | | ??????????????????????#ga #??????????????????????? | | ??????????????????????# #??????????????????????? | | ??????????????????????# +??????????????????????? | | ????????############### #??????????????????????? | | ????????# # #??????????????????????? | | ????????# """ """ # a#??????????????????????? | | ##+###"## "" """ """ # #??????????????????????? | | # + "Y """ """ + #??????????????????????? | | # ##### " # #??????????????????????? | | # #???# # #??????????????????????? | | # #???##+############ #??????????????????????? | | # ##### #???###@#??????????????????????? | | # [ ##### #???? w ?????????????????????? | | # #?????????# """ ""???????????????????? | | ! #?????????# """ """ ?????????????????? | | #?????????# """ """ #????????????????? | | #?????????# """ """ ?????????????????? | | #?????????# """ """ ?????????????????? | | " #?????????# ??? ?????????????????? | | """ +?????????# ???r ????????????????????? | | """ #???????????????##???????????????????? | | """ #????????????????????????????????????? | | "" #????????????????????????????????????? | | """ #????????????????????????????????????? | | "" #????????????????????????????????????? | | "? #????????????????????????????????????? | | ? #????????????????????????????????????? | | ? ??????????????????????????????????????? | | ?? ????????????????????????????????????????? | | ????????????????????????????????????????????? | | ?????????????????????????????????????????????????? | | ?????????????????????????????????????????????????? | | ?????????????????????????????????????????????????? | | ?????????????????????????????????????????????????? | | ?????????????????????????????????????????????????? | | ?????????????????????????????????????????????????? | +----------------------------------------------------+ Best States ------------- Heat Dissipation 31 Energy Generation 10 Energy Capacity 250 Matter Stores 500 Matter Capacity 500 Sight Range 16 Terrain Scan Density 10 Armor Coverage 800 Evasion (%) 55 Targeting Accuracy 5 Recoil Reduction 2 Offensive Hacking 10 Item Schematics ----------------- None Robot Schematics ------------------ None Fabricated ------------ Nothing Alien Tech Used ----------------- None Achievements -------------- Close Call Storm Trooper Challenges ------------ None Game ------ Seed ZhirovSignalUnit Manual? 0 Play Time 00:41:40 Cumulative 6.6 hours Start 2024.03.31 @ 07:56:14 End 2024.03.31 @ 08:37:45 Sessions 1 Manual Loads 0 Difficulty Rogue Special Mode None Game No. 7 Rogue 4 Adventurer 3 Explorer 0 Win Type - Total 0 Types 0/0/0/0/0/0/0/0/0 Lore% 7 Gallery% 9 Achievement% 7 Wizard Run 0 Options --------- Layout 1 ASCII 0 Keyboard 0 Movement Mouse Keybinds 0 Fullscreen 1 Font 32/SmallcapsGlow Map View 50x35 Zoom Use 0% Tactical HUD 0 Map Filters NONE Filters NONE Steam 1 RUN: 62a85817-f918-476d-9cb9-757c32fab15d